fUST/lending_fUST_20260407
["ID","MTS","AMOUNT","RATE_DAILY","PERIOD"]
[419956361,1775550638483,-300.0,0.00013929,2]
[419956362,1775550638494,-300.0,0.00013929,2]
[419956364,1775550638504,-4913.992075,0.00013929,2]
[419956808,1775550643260,-1888.90328211,0.00013929,2]
[419956827,1775550643480,-3166.47645286,0.00013929,2]
[419956828,1775550643492,-1275.38190145,0.00013929,2]
[419956849,1775550646403,-4494.71853894,0.00013929,2]
[419956850,1775550646412,-442.8318006,0.00015476,2]
[419956851,1775550646422,-1769.5558752,0.00015476,2]
[419956852,1775550646431,-280.1259146,0.00015645,2]
[419956853,1775550646441,-1403.92654619,0.0001619,2]
[419956854,1775550646450,-560.62064509,0.0001629,2]
[419956855,1775550646459,-671.61861143,0.0001629,2]
[419956856,1775550646471,-1568.62148634,0.0001629,2]
[419956857,1775550646481,-153.68,0.00017147,2]
[419956858,1775550646491,-280.1259146,0.00017494,2]
[419956859,1775550646501,-1403.92654613,0.00017783,2]
[419956861,1775550646511,-160.0,0.000183,2]
[419956862,1775550646520,-2592.97724826,0.00018495,2]
[419956863,1775550646529,-500.0,0.00018999,2]
[419956864,1775550646539,-85.66366219,0.00018999,2]
[419956889,1775550687773,-2758.43470415,0.00013652,2]
[419956902,1775550702136,2000.0,9.91e-05,2]
[419956903,1775550702840,2000.0,9.81e-05,2]
[419956904,1775550702984,151.0,0.0001,2]
[419956905,1775550703422,2000.0,9.71e-05,2]
[419956906,1775550704033,2000.0,9.61e-05,2]
[419956907,1775550704598,2000.0,9.51e-05,2]
[419956909,1775550705169,2000.0,9.41e-05,2]
[419956910,1775550705791,2000.0,9.31e-05,2]
[419956911,1775550706369,2000.0,9.21e-05,2]
[419956913,1775550706952,166.75640415,9.11e-05,2]
[419956928,1775550746383,151.0,0.0001,2]
[419956937,1775550779627,151.0,0.0001,2]
[419956986,1775551004691,425.26620326,0.0001001,2]
[419956987,1775551004725,666.26859008,0.0001001,2]
[419956988,1775551004755,362.42089169,0.0001001,2]
[419957009,1775551610300,158.4099187,6.312e-05,2]
[419957050,1775551790467,5000.0,0.0001001,2]
[419957055,1775551798582,5000.0,0.0001001,2]
[419957061,1775551813257,5000.0,0.0001001,2]
[419957062,1775551821356,5000.0,0.0001001,2]
[419957072,1775551835563,5000.0,0.0001001,2]
[419957082,1775551838424,-300.0,0.00010127,2]
[419957083,1775551838434,-562.0,0.00010127,2]
[419957084,1775551838443,-5000.0,0.00010128,2]
[419957085,1775551838454,-425.26620326,0.00011086,2]
[419957086,1775551838464,-666.26859008,0.00011086,2]
[419957087,1775551838473,-362.42089169,0.00011086,2]
[419957088,1775551838484,-294.0,0.00011138,2]
[419957089,1775551838495,-300.0,0.00011307,2]
[419957090,1775551838506,-300.0,0.00011307,2]
[419957091,1775551838516,-300.0,0.00011307,2]
[419957092,1775551838527,-300.0,0.00011307,2]
[419957093,1775551838537,-300.0,0.00011307,2]
[419957094,1775551838547,-300.0,0.00011307,2]
[419957095,1775551838558,-300.0,0.00011307,2]
[419957096,1775551838567,-300.0,0.00011307,2]
[419957097,1775551838577,-300.0,0.00011307,2]
[419957098,1775551838587,-300.0,0.00011307,2]
[419957100,1775551838597,-300.0,0.00011307,2]
[419957101,1775551838606,-300.0,0.00011307,2]
[419957102,1775551838616,-300.0,0.00011307,2]
[419957103,1775551838626,-300.0,0.00011307,2]
[419957104,1775551838635,-300.0,0.00011307,2]
[419957105,1775551838645,-600.0,0.00011532,2]
[419957106,1775551838655,-151.0,0.00012162,2]
[419957107,1775551838664,-666.26859008,0.00012162,7]
[419957108,1775551838675,-425.26620326,0.00012162,7]
[419957109,1775551838684,-362.42089169,0.00012162,7]
[419957110,1775551838694,-720.0,0.00012685,2]
[419957111,1775551838704,-163.085672,0.00012998,2]
[419957112,1775551838714,-666.26859008,0.00013239,7]
[419957113,1775551838724,-425.26620326,0.00013239,7]
[419957114,1775551838734,-362.42089169,0.00013239,7]
[419957115,1775551838744,-1000.0,0.00013699,2]
[419957116,1775551838754,-864.0,0.00013954,2]
[419957117,1775551838764,-151.0,0.00013954,2]
[419957118,1775551838774,-666.26859008,0.00014315,7]
[419957119,1775551838783,-425.26620326,0.00014315,7]
[419957120,1775551838793,-362.42089169,0.00014315,7]
[419957121,1775551838803,-1052.94490965,0.00014623,2]
[419957122,1775551838812,-8767.1077803,0.00014723,2]
[419957123,1775551838821,-280.125915,0.00014723,2]
[419957124,1775551838831,-1000.0,0.00015349,2]
[419957125,1775551838839,-425.26620326,0.00015391,14]
[419957126,1775551838848,-666.26859008,0.00015391,14]
[419957127,1775551838858,-362.42089169,0.00015391,7]
[419957128,1775551838869,-297.385362,0.00016438,2]
[419957129,1775551838879,-151.0,0.00016438,2]
[419957130,1775551838889,-151.0,0.00016438,2]
[419957131,1775551838899,-151.0,0.00016438,2]
[419957132,1775551838909,-151.0,0.00016438,2]
[419957133,1775551838918,-151.0,0.00016438,2]
[419957134,1775551838928,-151.0,0.00016438,2]
[419957135,1775551838937,-151.0,0.00016438,2]
[419957136,1775551838947,-151.0,0.00016438,2]
[419957137,1775551838957,-151.0,0.00016438,2]
[419957138,1775551838967,-1052.94490959,0.00016443,2]
[419957139,1775551838977,-666.26859008,0.00016467,14]
[419957140,1775551838987,-425.26620326,0.00016467,14]
[419957141,1775551838997,-362.42089169,0.00016467,14]
[419957142,1775551839007,-151.0,0.00016652,2]
[419957143,1775551839017,-8767.1077803,0.00016652,2]
[419957144,1775551839026,-1000.0,0.00016884,2]
[419957145,1775551839035,-244.0,0.00016884,2]
[419957146,1775551839045,-425.26620326,0.00017543,14]
[419957147,1775551839055,-666.26859008,0.00017543,14]
[419957148,1775551839065,-362.42089169,0.00017543,14]
[419957149,1775551839075,-1052.94490959,0.00018263,2]
[419957150,1775551839378,-164.0,0.000183,2]
[419957151,1775551839389,-1000.0,0.00018573,2]
[419957152,1775551839398,-492.0,0.00018573,2]
[419957153,1775551839408,-8767.1077803,0.00018581,2]
[419957154,1775551839417,-164.0,0.000186,3]
[419957155,1775551839427,-425.26620326,0.00018619,30]
[419957156,1775551839437,-666.26859008,0.00018619,30]
[419957157,1775551839446,-362.42089169,0.00018619,14]
[419957158,1775551839456,-326.99,0.00018889,3]
[419957159,1775551839466,-779.71447976,0.000189,2]
[419957160,1775551839476,-290.58644209,0.00018999,2]
[419957161,1775551839486,-1374.4112651,0.000191,2]
[419957162,1775551839495,-3468.72178344,0.000191,2]
[419957163,1775551839504,-3113.89590177,0.000191,2]
[419957164,1775551839516,-200.0,0.00019178,2]
[419957165,1775551839526,-666.26859008,0.00019696,30]
[419957166,1775551839535,-425.26620326,0.00019696,30]
[419957167,1775551839544,-362.42089169,0.00019696,30]
[419957168,1775551839554,-184.0,0.00019826,2]
[419957169,1775551839564,-20000.0,0.0002,2]
[419957170,1775551839574,-206.42,0.0002,2]
[419957171,1775551839584,-779.86,0.0002,2]
[419957172,1775551839593,-2253.33,0.0002,2]
[419957173,1775551839603,-1449.28012265,0.0002,2]
[419957174,1775551839619,-190.71987735,0.0002,2]
[419957175,1775551839629,-800.0,0.0002,2]
[419957176,1775551839638,-882.57,0.0002,2]
[419957177,1775551839647,-149.09311386,0.00020063,2]
[419957178,1775551839658,-18.90688614,0.00020063,2]
[419957179,1775551839668,-1052.94490959,0.00020083,2]
[419957180,1775551839677,-168.0,0.00020116,2]
[419957181,1775551839686,-168.0,0.00020224,2]
[419957182,1775551839696,-168.0,0.00020286,2]
[419957183,1775551839706,-1000.0,0.0002043,2]
[419957184,1775551839715,-791.0,0.0002043,2]
[419957185,1775551839724,-168.0,0.00020495,2]
[419957186,1775551839734,-168.0,0.00020506,2]
[419957187,1775551839744,-8767.1077803,0.00020511,2]
[419957188,1775551839753,-981.0,0.00020539,2]
[419957189,1775551839763,-168.0,0.0002069,2]
[419957190,1775551839773,-735.38695682,0.00020732,2]
[419957191,1775551839784,-245.61304318,0.00020732,2]
[419957192,1775551839794,-666.26859008,0.00020772,60]
[419957193,1775551839803,-425.26620326,0.00020772,60]
[419957194,1775551839813,-362.42089169,0.00020772,30]
[419957195,1775551839822,-981.0,0.00020782,2]
[419957196,1775551839832,-669.17651924,0.00020795,2]
[419957238,1775551846841,-5000.0,0.00020587,2]
[419957239,1775551846851,-311.82348076,0.00020795,2]
[419957240,1775551846861,-1870.0,0.00020797,2]
[419957241,1775551846870,-574.04253862,0.0002083,2]
[419957309,1775552481355,-300.0,0.00012521,2]
[419957310,1775552481394,-1762.44166859,0.00012522,2]
[419957313,1775552510542,-300.0,0.00012522,2]
[419957360,1775553034659,-3879.21982517,0.0001134,2]
[419957361,1775553034671,-293.88466755,0.0001134,2]
[419957362,1775553034681,-353.51533345,0.0001134,2]
[419957363,1775553034714,-225.48466655,0.0001134,2]
[419957364,1775553034723,-895.29550828,0.00011454,2]
[419957365,1775553034735,-304.70449172,0.00011454,2]
[419957366,1775553034745,-3325.36796059,0.00011455,2]
[419957381,1775553038813,-435.0,0.00011455,2]
[419957382,1775553038921,-998.5915468,0.00011455,2]
[419957383,1775553038976,-241.04049261,0.00011455,2]
[419957384,1775553038987,-1130.29265018,0.00011571,2]
[419957385,1775553038998,-300.0,0.00011788,2]
[419957386,1775553039007,-300.0,0.00011788,2]
[419957387,1775553039016,-1419.0,0.00012599,2]
[419957388,1775553039026,-420.0,0.00012943,2]
[419957389,1775553039036,-526.47245483,0.000135,2]
[419957390,1775553039046,-508.99649655,0.00013566,2]
[419957391,1775553039056,-300.0,0.00013567,2]
[419957392,1775553039066,-300.0,0.00013567,2]
[419957393,1775553039075,-300.0,0.00013567,2]
[419957394,1775553039085,-300.0,0.00013567,2]
[419957395,1775553039095,-300.0,0.00013567,2]
[419957396,1775553039105,-300.0,0.00013567,2]
[419957397,1775553039115,-300.0,0.00013567,2]
[419957398,1775553039124,-300.0,0.00013567,2]
[419957399,1775553039134,-300.0,0.00013567,2]
[419957400,1775553039144,-300.0,0.00013567,2]
[419957401,1775553039155,-300.0,0.00013567,2]
[419957402,1775553039165,-300.0,0.00013567,2]
[419957403,1775553039176,-300.0,0.00013567,2]
[419957404,1775553039185,-300.0,0.00013567,2]
[419957405,1775553039195,-300.0,0.00013567,2]
[419957406,1775553039204,-9167.62306224,0.00013567,2]
[419957407,1775553039213,-500.0,0.000136,2]
[419957408,1775553039223,-500.0,0.000136,2]
[419957409,1775553039233,-500.0,0.000136,2]
[419957410,1775553039243,-500.0,0.000136,2]
[419957411,1775553039252,-500.0,0.000136,2]
[419957412,1775553039262,-1000.0,0.00013699,2]
[419957413,1775553039271,-1000.0,0.00014148,2]
[419957414,1775553039281,-503.06663606,0.00014148,2]
[419957415,1775553039290,-1000.0,0.00014148,2]
[419957416,1775553039300,-502.04061485,0.00014148,2]
[419957417,1775553039311,-587.0,0.00014212,2]
[419957418,1775553039320,-500.0,0.000144,2]
[419957419,1775553039330,-1500.0,0.00014696,2]
[419957420,1775553039340,-1500.0,0.00014696,2]
[419957421,1775553039349,-1342.38833765,0.00015244,2]
[419957422,1775553039358,-2000.0,0.00015244,2]
[419957423,1775553039367,-526.47245479,0.00015481,2]
[419957424,1775553039377,-200.0,0.00015605,2]
[419957425,1775553039386,-2500.0,0.00015792,2]
[419957426,1775553039395,-535.292815,0.00016438,2]
[419957427,1775553039404,-526.47245479,0.00017461,2]
[419957428,1775553039413,-158.11772741,0.00018772,2]
[419957429,1775553039424,-169.0,0.00018862,2]
[419957430,1775553039434,-600.0,0.00019046,2]
[419957431,1775553039443,-214.881172,0.00019046,2]
[419957432,1775553039452,-340.76268094,0.00019177,2]
[419957433,1775553039460,-1014.302391,0.00019178,2]
[419957434,1775553039469,-1014.302391,0.00019178,2]
[419957435,1775553039478,-1014.302391,0.00019178,2]
[419957436,1775553039487,-1014.302391,0.00019178,2]
[419957437,1775553039496,-1014.302391,0.00019178,2]
[419957438,1775553039505,-1014.302391,0.00019178,2]
[419957439,1775553039514,-1014.302391,0.00019178,2]
[419957440,1775553039523,-1014.302391,0.00019178,2]
[419957441,1775553039532,-1014.302391,0.00019178,2]
[419957442,1775553039541,-1014.302391,0.00019178,2]
[419957443,1775553039550,-1014.302391,0.00019178,2]
[419957444,1775553039559,-1014.302391,0.00019178,2]
[419957445,1775553039568,-1014.302391,0.00019178,2]
[419957446,1775553039576,-1014.302391,0.00019178,2]
[419957447,1775553039585,-1014.302391,0.00019178,2]
[419957448,1775553039594,-1014.302391,0.00019178,2]
[419957449,1775553039603,-526.47245479,0.00019442,2]
[419957450,1775553039613,-184.0,0.00019571,2]
[419957451,1775553039623,-1420.4004867,0.00019846,2]
[419957452,1775553039632,-2819.8429978,0.00019846,2]
[419957453,1775553039642,-350.02185736,0.0002,5]
[419957454,1775553039652,-205.66,0.0002,2]
[419957455,1775553039662,-987.41086767,0.0002,2]
[419957456,1775553039672,-3945.69382723,0.0002,2]
[419957457,1775553039681,-719.30530692,0.0002,2]
[419957458,1775553039691,-1900.0,0.0002,2]
[419957459,1775553039701,-810.0,0.0002,2]
[419957460,1775553039710,-1014.302391,0.0002,2]
[419957461,1775553039720,-1014.302391,0.0002,2]
[419957462,1775553039729,-1014.302391,0.0002,2]
[419957463,1775553039739,-1014.302391,0.0002,2]
[419957464,1775553039749,-500.0,0.00020105,2]
[419957465,1775553039759,-500.0,0.00020105,2]
[419957466,1775553039768,-1900.0,0.00020428,2]
[419957467,1775553039777,-5888.0,0.00020601,2]
[419957468,1775553039786,-1000.0,0.00020653,2]
[419957469,1775553039796,-1000.0,0.00020653,2]
[419957470,1775553039805,-500.0,0.00020697,2]
[419957471,1775553039815,-151.0,0.00020751,2]
[419957472,1775553039824,-166.32862087,0.00020751,2]
[419957473,1775553039835,-168.3888056,0.00020751,2]
[419957474,1775553039844,-557.5788265,0.00020751,2]
[419957475,1775553039853,-156.587,0.00020751,2]
[419957476,1775553039863,-2150.738,0.00020751,2]
[419957477,1775553039872,-537.6845,0.00020751,2]
[419957478,1775553039882,-557.5788265,0.00020806,2]
[419957479,1775553039892,-200.0,0.00020818,2]
[419957480,1775553039902,-1200.0,0.00020818,2]
[419957481,1775553039912,-2500.0,0.00020819,2]
[419957482,1775553039923,-250.0,0.00020822,6]
[419957483,1775553039932,-406.95746138,0.0002083,2]
[419957484,1775553039942,-323.47045523,0.00020853,2]
[419957485,1775553039951,-612.60029667,0.00020853,2]
[419957486,1775553039961,-500.0,0.00020853,2]
[419957487,1775553039969,-500.0,0.00020853,2]
[419957488,1775553039979,-500.0,0.00020853,2]
[419957489,1775553039988,-500.0,0.00020853,2]
[419957490,1775553039996,-500.0,0.00020853,2]
[419957491,1775553040005,-500.0,0.00020853,2]
[419957492,1775553040014,-500.0,0.00020853,2]
[419957493,1775553040023,-500.0,0.00020853,2]
[419957494,1775553040032,-500.0,0.00020853,2]
[419957495,1775553040042,-500.0,0.00020853,2]
[419957496,1775553040051,-500.0,0.00020853,2]
[419957497,1775553040060,-500.0,0.00020853,2]
[419957498,1775553040068,-500.0,0.00020853,2]
[419957499,1775553040077,-500.0,0.00020853,2]
[419957501,1775553040086,-500.0,0.00020853,2]
[419957502,1775553040095,-500.0,0.00020853,2]
[419957503,1775553040104,-500.0,0.00020853,2]
[419957504,1775553040113,-500.0,0.00020853,2]
[419957505,1775553040122,-500.0,0.00020853,2]
[419957506,1775553040131,-500.0,0.00020853,2]
[419957507,1775553040140,-500.0,0.00020853,2]
[419957508,1775553040149,-160.05617268,0.00020853,2]
[419957509,1775553040158,-500.0,0.00020853,2]
[419957510,1775553040168,-500.0,0.00020853,2]
[419957511,1775553040177,-500.0,0.00020853,2]
[419957512,1775553040185,-500.0,0.00020853,2]
[419957513,1775553040195,-981.0,0.00020855,2]
[419957514,1775553040204,-578.20924308,0.00020861,2]
[419957515,1775553040214,-219.0,0.000209,2]
[419957516,1775553040223,-156.0,0.000209,2]
[419957517,1775553040233,-433.26951126,0.00020916,2]
[419957518,1775553040243,-720.0,0.00020951,2]
[419957519,1775553040254,-981.0,0.00020975,2]
[419957520,1775553040263,-981.0,0.00021135,2]
[419957521,1775553040273,-981.0,0.0002114,2]
[419957522,1775553040284,-981.0,0.00021146,2]
[419957523,1775553040294,-201.67508031,0.00021148,2]
[419957524,1775553040303,-1500.0,0.00021201,2]
[419957525,1775553040313,-1500.0,0.00021201,2]
[419957526,1775553040323,-221.362,0.00021221,2]
[419957527,1775553040332,-181.29,0.00021221,2]
[419957528,1775553040342,-200.0,0.00021221,2]
[419957529,1775553040352,-981.0,0.00021221,2]
[419957530,1775553040362,-211.05,0.00021227,2]
[419957531,1775553040371,-981.0,0.00021227,2]
[419957532,1775553040380,-502.24424742,0.00021245,2]
[419957533,1775553040389,-981.0,0.0002125,2]
[419957534,1775553040398,-360.0,0.00021262,2]
[419957535,1775553040407,-500.0,0.00021273,2]
[419957536,1775553040416,-2309.892612,0.00021299,2]
[419957537,1775553040426,-981.0,0.00021336,2]
[419957538,1775553040434,-201.67508031,0.00021336,2]
[419957539,1775553040444,-981.0,0.00021371,2]
[419957540,1775553040453,-526.47245479,0.00021422,2]
[419957541,1775553040462,-201.67508031,0.00021524,2]
[419957542,1775553040471,-153.68,0.00021655,2]
[419957543,1775553040480,-201.67508031,0.00021712,2]
[419957544,1775553040490,-2000.0,0.00021749,2]
[419957545,1775553040500,-2000.0,0.00021749,2]
[419957547,1775553040510,-568.75,0.00021818,2]
[419957548,1775553040519,-568.75,0.00021818,2]
[419957549,1775553040529,-568.75,0.00021818,2]
[419957550,1775553040538,-568.75,0.00021818,2]
[419957551,1775553040547,-568.75,0.00021818,2]
[419957552,1775553040556,-568.75,0.00021818,2]
[419957554,1775553040566,-786.37,0.00021818,2]
[419957555,1775553040575,-863.39450321,0.00021821,2]
[419957559,1775553041408,-136.60549679,0.00021821,2]
[419957560,1775553041418,-666.26859008,0.00021848,60]
[419957561,1775553041427,-425.26620326,0.00021848,60]
[419957562,1775553041436,-171.620035,0.00021848,30]
[419957591,1775553043854,-190.80085669,0.00021848,30]
[419957592,1775553043866,-160.0,0.000219,3]
[419957593,1775553043877,-219.0,0.000219,2]
[419957594,1775553043888,-201.67508031,0.000219,2]
[419957595,1775553043898,-156.0,0.000219,2]
[419957596,1775553043909,-155.327,0.00021917,2]
[419957597,1775553043919,-151.0,0.00021918,2]
[419957598,1775553043931,-151.0,0.00021918,2]
[419957599,1775553043942,-255.530001,0.00021918,2]
[419957600,1775553043951,-151.0,0.00021918,2]
[419957601,1775553043963,-151.0,0.00021918,2]
[419957602,1775553043974,-151.0,0.00021918,2]
[419957603,1775553043985,-151.0,0.00021918,2]
[419957604,1775553043995,-194.55878,0.00021918,2]
[419957605,1775553044006,-213.21136,0.00021918,2]
[419957606,1775553044016,-213.21136,0.00021918,2]
[419957607,1775553044026,-213.21136,0.00021918,2]
[419957608,1775553044037,-213.21136,0.00021918,2]
[419957609,1775553044047,-213.21136,0.00021918,2]
[419957610,1775553044059,-213.21136,0.00021918,2]
[419957611,1775553044068,-213.21136,0.00021918,2]
[419957612,1775553044079,-213.21136,0.00021918,2]
[419957613,1775553044089,-213.21136,0.00021918,2]
[419957615,1775553044098,-213.21136,0.00021918,2]
[419957616,1775553044108,-213.21136,0.00021918,2]
[419957617,1775553044119,-213.21136,0.00021918,2]
[419957618,1775553044129,-213.21136,0.00021918,2]
[419957620,1775553044140,-213.21136,0.00021918,2]
[419957622,1775553044150,-213.21136,0.00021918,2]
[419957624,1775553044160,-213.21136,0.00021918,2]
[419957626,1775553044169,-213.21136,0.00021918,2]
[419957628,1775553044181,-326.08297809,0.00021999,2]
[419957633,1775553044191,-280078.30930106,0.00022,2]
[419957635,1775553044204,-114617.1036727,0.00022,2]
[419957678,1775553046893,-213.21136,0.00021918,2]
[419957680,1775553046902,-213.21136,0.00021918,2]
[419957682,1775553046913,-213.211368,0.00021918,2]
[419957685,1775553046923,-1928.66457867,0.00022,2]
[419957815,1775553616421,928.23324733,0.0001001,2]
[419957824,1775554053301,158.409918,6.407e-05,2]
[419957825,1775554101592,302.51339357,1e-06,2]
[419957826,1775554104287,151.25,1e-06,2]
[419957841,1775554207237,5000.0,0.0001001,2]
[419957846,1775554229356,5000.0,0.0001001,2]
[419957869,1775554232558,-281.6786739,0.00010197,2]
[419957870,1775554232569,-18.3213261,0.00010197,2]
[419957871,1775554232579,-171.0,0.00010197,2]
[419957872,1775554232588,-563.0,0.00010198,2]
[419957873,1775554232598,-635.41166237,0.00010511,2]
[419957874,1775554232607,-161.47768965,0.00010613,2]
[419957875,1775554232619,-138.52231035,0.00010613,2]
[419957876,1775554232628,-300.0,0.00010613,2]
[419957877,1775554232638,-31.22548594,0.00010613,2]
[419957948,1775554238850,-268.77451406,0.00010613,2]
[419957950,1775554238859,-300.0,0.00010613,2]
[419957952,1775554238869,-300.0,0.00010613,2]
[419957954,1775554238879,-300.0,0.00010613,2]
[419957956,1775554238889,-300.0,0.00010613,2]
[419957958,1775554238899,-300.0,0.00010613,2]
[419957960,1775554238909,-300.0,0.00010613,2]
[419957962,1775554238919,-123.30160978,0.00010613,2]
[419957965,1775554238931,-176.69839022,0.00010613,2]
[419957967,1775554238940,-300.0,0.00010613,2]
[419957969,1775554238950,-300.0,0.00010613,2]
[419957971,1775554238961,-300.0,0.00010613,2]
[419957972,1775554238970,-300.0,0.00010613,2]
[419957974,1775554238980,-300.0,0.00010613,2]
[419957976,1775554238990,-620.77058312,0.00011036,2]
[419957978,1775554239000,-300.0,0.00011214,2]
[419957980,1775554239009,-620.03852916,0.00011588,2]
[419957982,1775554239019,-620.00192646,0.00012167,2]
[419957984,1775554239030,-620.00009632,0.00012776,2]
[419957986,1775554239040,-620.00000482,0.00013414,2]
[419957988,1775554239049,-1000.0,0.00013699,2]
[419957990,1775554239059,-500.0,0.00017512,2]
[419957991,1775554239069,-531.3571458,0.0001806,2]
[419957993,1775554239079,-500.0,0.0001835,2]
[419957995,1775554239088,-197.42717059,0.00018877,2]
[419957997,1775554239099,-1000.0,0.00018898,2]
[419957999,1775554239108,-959.35600328,0.00018977,2]
[419958001,1775554239118,-500.0,0.00018977,2]
[419958003,1775554239128,-226.42931866,0.00018977,2]
[419958005,1775554239137,-959.35600328,0.00018977,2]
[419958007,1775554239146,-500.0,0.00018977,2]
[419958008,1775554239155,-428.82020767,0.00018977,2]
[419958010,1775554239165,-959.35600328,0.00018977,2]
[419958012,1775554239175,-959.35600328,0.00018977,2]
[419958014,1775554239184,-500.0,0.00018977,2]
[419958047,1775554239557,-959.35600328,0.00018977,2]
[419958048,1775554239567,-959.35600328,0.00018977,2]
[419958049,1775554239576,-959.35600328,0.00018977,2]
[419958050,1775554239586,-959.35600328,0.00018977,2]
[419958051,1775554239596,-500.0,0.00018977,2]
[419958052,1775554239606,-959.35600328,0.00018977,2]
[419958053,1775554239615,-500.0,0.00018977,2]
[419958054,1775554239625,-959.35600328,0.00018977,2]
[419958055,1775554239634,-959.35600328,0.00018977,2]
[419958056,1775554239645,-500.0,0.00018977,2]
[419958057,1775554239655,-500.0,0.00018977,2]
[419958058,1775554239664,-959.35600328,0.00018977,2]
[419958059,1775554239673,-500.0,0.00018977,2]
[419958060,1775554239682,-500.0,0.00018977,2]
[419958061,1775554239692,-959.35600328,0.00018977,2]
[419958062,1775554239701,-500.0,0.00018977,2]
[419958063,1775554239711,-959.35600328,0.00018977,2]
[419958064,1775554239720,-959.35600328,0.00018977,2]
[419958065,1775554239729,-235.50372378,0.00018977,2]
[419958066,1775554239738,-500.0,0.00018977,2]
[419958067,1775554239747,-959.35600328,0.00018977,2]
[419958068,1775554239757,-959.35600328,0.00018977,2]
[419958069,1775554239766,-959.35600328,0.00018977,2]
[419958070,1775554239775,-959.35600328,0.00018977,2]
[419958071,1775554239784,-959.35600328,0.00018977,2]
[419958072,1775554239792,-211.52780496,0.00018977,2]
[419958073,1775554239807,-943.065,0.00018977,2]
[419958201,1775554246846,-1378.34555732,0.00018977,2]
[419958202,1775554246855,-2532.93836228,0.00018977,2]
[419958203,1775554246865,-2532.93836228,0.00018977,2]
[419958204,1775554246874,-500.0,0.00018977,2]
[419958205,1775554246884,-2532.93836228,0.00018977,2]
[419958206,1775554246894,-1058.01148385,0.00018977,2]
[419958214,1775554250343,-703.0,0.00018977,2]
[419958215,1775554250352,-1474.92687843,0.00018977,2]
[419958216,1775554250361,-500.0,0.00018977,2]
[419958217,1775554250370,-2532.93836228,0.00018977,2]
[419958218,1775554250380,-500.0,0.00018977,2]
[419958219,1775554250389,-2532.93836228,0.00018977,2]
[419958220,1775554250399,-500.0,0.00018977,2]
[419958221,1775554250409,-500.0,0.00018977,2]
[419958222,1775554250419,-2532.93836228,0.00018977,2]
[419958223,1775554250429,-500.0,0.00018977,2]
[419958224,1775554250438,-3537.91102131,0.00018978,2]
[419958225,1775554250448,-34195.91964125,0.00018978,2]
[419958316,1775555312447,1455.28783851,1e-06,2]
[419958317,1775555315560,500.0,1e-06,2]
[419958318,1775555317952,227.64,1e-06,2]
[419958379,1775555431823,-5000.0,0.00012504,2]
[419958380,1775555431833,-597.0,0.00012504,2]
[419958381,1775555431843,-511.86879864,0.0001263,2]
[419958382,1775555431854,-300.0,0.0001296,2]
[419958383,1775555431864,-300.0,0.0001296,2]
[419958384,1775555431875,-300.0,0.0001296,2]
[419958385,1775555431885,-300.0,0.0001296,2]
[419958386,1775555431895,-84.13120136,0.0001296,2]
[419958387,1775555431933,-521.86879864,0.0001296,2]
[419958388,1775555431943,-154.0,0.00013463,2]
[419958389,1775555431953,-192.69931023,0.00013463,2]
[419958390,1775555431964,-1000.0,0.00013699,2]
[419958391,1775555431974,-300.0,0.00013972,2]
[419958392,1775555431983,-82.75148267,0.00013972,2]
[419958393,1775555432012,-217.24851733,0.00013972,2]
[419958394,1775555432021,-300.0,0.00013972,2]
[419958395,1775555432031,-300.0,0.00013972,2]